bitfinex-derivatives/quotes_ETHF0:USTF0_20250504
["timestamp","ask_amount","ask_price","bid_price","bid_amount"]
[1746371300323,11.75803768,1832.0,1831.9,7.201]
[1746371301322,11.75803768,1832.0,1831.9,3.513]
[1746371302423,11.75803768,1832.0,1831.9,4.6047]
[1746371303015,11.75803768,1832.0,1831.9,3.513]
[1746371303211,11.75803768,1832.0,1831.9,4.6047]
[1746371303417,11.75803768,1832.0,1831.9,3.513]
[1746371303925,10.66639768,1832.0,1831.9,4.6047]
[1746371304122,7.42219768,1832.0,1831.9,9.9495]
[1746371306620,2.67604,1832.2,1832.1,1.09158]
[1746371306925,1.5845,1832.2,1832.1,1.09158]
[1746371307125,9.00669768,1832.2,1832.1,1.09158]
[1746371307339,9.00669768,1832.2,1832.1,3.48958]
[1746371307926,7.42219768,1832.2,1832.1,3.48958]
[1746371310926,2.65804,1832.4,1832.2,1.09152]
[1746371311126,2.65804,1832.4,1832.2,6.39608]
[1746371311425,7.42219768,1832.3,1832.2,6.39608]
[1746371311626,7.42219768,1832.3,1832.2,4.77948]
[1746371312326,1.5666,1832.4,1832.3,1.09146]
[1746371312527,5.986,1832.6,1832.4,1.09135]
[1746371312726,8.4411,1832.6,1832.4,1.09135]
[1746371312922,9.02819768,1832.5,1832.4,1.09135]
[1746371313318,2.72852,1832.4,1831.8,3.2078]
[1746371313519,1.09193,1831.6,1831.4,10.8891451]
[1746371313731,9.02819768,1831.5,1831.4,10.8891451]
[1746371314024,9.86349768,1831.5,1831.4,18.07554304]
[1746371314225,9.86349768,1831.5,1831.4,21.76354304]
[1746371314427,9.86349768,1831.5,1831.4,22.85554304]
[1746371314625,9.86349768,1831.5,1831.4,21.76354304]
[1746371315028,9.86349768,1831.5,1831.4,22.85554304]
[1746371316729,10.95543768,1831.5,1831.4,21.76354304]
[1746371316931,9.86349768,1831.5,1831.4,21.76354304]
[1746371318535,10.95543768,1831.5,1831.4,3.688]
[1746371322828,1.09218,1831.1,1831.0,4.0735]
[1746371323034,1.09231,1830.9,1830.8,3.2078]
[1746371323239,1.09231,1830.9,1830.8,6.8958]
[1746371324235,1.09231,1830.9,1830.8,8.5064]
[1746371324730,1.09216,1831.2,1830.8,13.5064]
[1746371324936,1.09218,1831.1,1830.9,2.70288]
[1746371325132,1.09218,1831.1,1831.0,5.9493]
[1746371325333,1.09218,1831.1,1831.0,6.742]
[1746371326336,1.09218,1831.1,1831.0,10.43]
[1746371329535,8.51437768,1831.1,1831.0,3.688]
[1746371329736,13.51437768,1831.1,1831.0,2.56966]
[1746371330036,8.51437768,1831.1,1831.0,2.56966]
[1746371330239,1.0923,1830.9,1830.8,3.688]
[1746371330634,8.51449768,1830.9,1830.8,3.688]
[1746371330834,10.22889768,1830.9,1830.8,3.688]
[1746371334838,8.51449768,1830.9,1830.8,3.688]
[1746371335033,5.986,1831.0,1830.9,1.0923]
[1746371335229,5.986,1831.0,1830.9,5.9301]
[1746371336239,5.986,1831.0,1830.9,9.6181]
[1746371336837,4.29981,1831.4,1831.0,2.73061]
[1746371337047,7.42219768,1831.3,1831.1,9.2356]
[1746371337234,7.42219768,1831.3,1831.2,1.6696]
[1746371337429,7.42219768,1831.3,1831.2,2.76172]
[1746371338244,2.76789,1831.5,1831.3,1.09206]
[1746371338541,1.092,1831.4,1831.3,1.6696]
[1746371338743,7.42219768,1831.4,1831.3,2.76166]
[1746371339042,3.2078,1831.8,1831.3,4.8774]
[1746371339245,8.51408768,1831.6,1831.4,7.11216]
[1746371339444,7.42219768,1831.6,1831.5,3.55334]
[1746371339948,4.29961,1831.8,1831.6,1.09188]
[1746371340243,7.42219768,1831.7,1831.6,1.09188]
[1746371343439,8.51401768,1831.7,1831.5,4.4941]
[1746371343641,8.51401768,1831.7,1831.5,5.58599]
[1746371344248,8.51407768,1831.6,1831.5,3.688]
[1746371344549,1.09242,1830.7,1830.6,14.00159766]
[1746371344743,1.09242,1830.7,1830.6,14.86179766]
[1746371344935,1.5708,1831.0,1830.6,14.86179766]
[1746371345140,8.51460768,1830.8,1830.6,14.86179766]
[1746371345338,8.51460768,1830.8,1830.6,15.95425766]
[1746371345537,3.2078,1831.3,1830.6,14.86179766]
[1746371345742,7.42219768,1831.0,1830.9,1.09227]
[1746371346148,2.66297,1831.2,1830.9,4.78027]
[1746371346451,7.42219768,1831.1,1830.9,9.13587]
[1746371346645,7.42219768,1831.2,1830.9,8.0436]
[1746371346845,1.09208,1831.3,1831.1,1.09218]
[1746371347146,7.42219768,1831.2,1831.1,1.09218]
[1746371347452,1.09218,1831.1,1831.0,3.688]
[1746371347751,11.71547768,1831.1,1831.0,3.688]
[1746371349049,12.12344125,1831.1,1831.0,3.688]
[1746371349250,1.09242,1830.7,1830.6,3.554]
[1746371351056,1.09227,1831.0,1830.8,1.09234]
[1746371351250,1.09239,1830.8,1830.6,4.64648]
[1746371351758,1.09239,1830.8,1830.6,3.554]
[1746371351954,1.09239,1830.8,1830.6,4.64647]
[1746371352155,1.09234,1830.9,1830.7,1.09242]
[1746371352354,7.42219768,1830.8,1830.7,1.09242]
[1746371352952,1.09234,1830.9,1830.7,1.09242]
[1746371353156,7.42219768,1830.8,1830.7,4.78042]
[1746371353857,1.0923,1830.9,1830.7,4.78038]
[1746371354057,1.0923,1830.9,1830.8,1.5864]
[1746371354359,8.51449768,1830.9,1830.8,1.5864]
[1746371355359,10.15369768,1830.9,1830.8,5.2744]
[1746371356858,2.7315,1830.9,1830.8,5.2744]
[1746371358255,10.15369768,1830.9,1830.8,5.2744]
[1746371358853,3.2078,1831.1,1830.8,5.2744]
[1746371359058,7.42219768,1831.0,1830.9,3.5486]
[1746371359260,11.72221768,1831.1,1830.9,7.1036]
[1746371359459,11.72221768,1831.1,1831.0,1.5911]
[1746371359864,4.30002,1831.1,1831.0,1.5911]
[1746371360162,4.30002,1831.1,1831.0,5.2791]
[1746371360358,5.44930419,1831.5,1831.0,13.4869]
[1746371360661,13.96346187,1831.5,1831.2,3.2078]
[1746371360851,13.96346187,1831.5,1831.3,6.0204]
[1746371361051,13.96346187,1831.5,1831.4,1.6248]
[1746371361963,12.87150187,1831.5,1831.4,1.6248]
[1746371362263,12.87150187,1831.5,1831.4,5.3128]
[1746371362466,12.87150187,1831.5,1831.4,6.4048]
[1746371362965,13.96344187,1831.5,1831.4,5.3128]
[1746371363771,15.67744187,1831.5,1831.4,5.3128]
[1746371364059,10.22813768,1831.5,1831.4,5.3128]
[1746371364666,10.22813768,1831.5,1831.4,3.688]
[1746371364870,11.02073768,1831.5,1831.4,3.688]
[1746371365259,1.092,1831.4,1831.3,3.555]
[1746371365566,10.22819768,1831.4,1831.3,3.555]
[1746371365860,3.2078,1831.6,1831.3,3.555]
[1746371366058,1.09194,1831.5,1831.4,1.6468]
[1746371366254,10.11743768,1831.5,1831.4,1.6468]
[1746371367066,1.092,1831.4,1831.3,8.0339]
[1746371367265,10.11749768,1831.4,1831.3,5.43796]
[1746371367565,9.02549768,1831.4,1831.3,5.43796]
[1746371367770,10.11749768,1831.4,1831.3,5.43796]
[1746371368062,10.11749768,1831.4,1831.3,8.0339]
[1746371368765,10.11749768,1831.4,1831.3,9.12596]
[1746371369569,9.02549768,1831.4,1831.3,9.12596]
[1746371370160,1.09198,1831.5,1831.4,1.092]
[1746371370362,1.09198,1831.5,1831.4,2.7845]
[1746371370564,8.51417768,1831.5,1831.4,2.7845]
[1746371370759,7.42219768,1831.5,1831.4,2.7845]
[1746371371060,3.2078,1831.8,1831.7,1.09182]
[1746371371261,7.42219768,1831.6,1831.5,2.78441]
[1746371371463,7.42219768,1831.6,1831.5,2.78444]
[1746371371662,8.51407768,1831.6,1831.5,2.78444]
[1746371372170,8.51407768,1831.6,1831.5,6.47244]
[1746371372469,7.42219768,1831.6,1831.5,6.47244]
[1746371374571,2.81387,1831.7,1831.6,1.09188]
[1746371374771,8.51406768,1831.7,1831.6,2.71008]
[1746371378672,8.51406768,1831.7,1831.6,1.6182]
[1746371379066,1.09188,1831.6,1831.5,3.688]
[1746371379271,14.11047768,1831.6,1831.5,3.688]
[1746371379571,19.11047768,1831.6,1831.5,3.688]
[1746371380170,1.09206,1831.3,1831.2,2.73762]
[1746371380375,7.42219768,1831.3,1831.2,1.09212]
[1746371380674,8.51425768,1831.3,1831.2,1.09212]
[1746371381170,8.51425768,1831.3,1831.2,4.78012]
[1746371382468,8.51425768,1831.3,1831.2,3.688]
[1746371382668,8.51425768,1831.3,1831.2,4.78012]
[1746371382871,8.51425768,1831.3,1831.2,3.688]
[1746371383769,10.09715768,1831.3,1831.2,3.688]
[1746371386074,15.09715768,1831.3,1831.2,3.688]
[1746371386276,1.09234,1830.9,1830.8,3.2078]
[1746371386575,8.51453768,1830.9,1830.8,3.2078]
[1746371386775,8.51453768,1830.9,1830.8,4.30016]
[1746371386975,7.42219768,1830.9,1830.8,4.30016]
[1746371387175,8.51449768,1830.9,1830.8,7.98816]
[1746371388473,1.6374,1831.1,1830.9,1.09225]
[1746371388678,7.42219768,1831.0,1830.9,1.09226]
[1746371388879,1.6794,1831.3,1831.1,1.09217]
[1746371389074,7.42219768,1831.2,1831.0,1.0922]
[1746371389267,8.51431768,1831.2,1831.1,1.5877]
[1746371389467,8.51431768,1831.2,1831.1,2.67988]
[1746371389978,8.51431768,1831.2,1831.1,1.5877]
[1746371390373,1.09203,1831.4,1831.3,1.09206]
[1746371390675,5.986,1831.5,1831.4,1.092]
[1746371391071,5.44930419,1831.7,1831.6,1.09188]
[1746371392075,6.54112419,1831.7,1831.5,6.3027]
[1746371392279,5.44930419,1831.7,1831.6,1.09188]
[1746371392774,6.54112419,1831.7,1831.5,9.99069]
[1746371393277,6.54112419,1831.7,1831.6,1.09188]
[1746371393477,5.44930419,1831.7,1831.6,1.09188]
[1746371394079,5.44930419,1831.7,1831.6,2.66938]
[1746371394578,6.54112419,1831.7,1831.6,1.5775]
[1746371394880,6.54112419,1831.7,1831.6,2.66938]
[1746371395078,1.09182,1831.7,1831.6,1.5775]
[1746371395978,1.09182,1831.7,1831.6,2.66937]
[1746371396181,4.29961,1831.8,1831.6,2.66937]
[1746371396381,4.29961,1831.8,1831.7,1.5775]
[1746371396681,11.72180768,1831.8,1831.7,1.5775]
[1746371397270,11.72180768,1831.8,1831.7,5.2655]
[1746371399379,1.09166,1832.0,1831.7,5.2655]
[1746371399577,7.42219768,1832.0,1831.9,1.0917]
[1746371399775,8.51383768,1832.0,1831.9,1.0917]
[1746371399978,8.51383768,1832.0,1831.9,1.6487]
[1746371400279,8.51383768,1832.0,1831.9,4.4736]
[1746371400481,10.13073768,1832.0,1831.9,3.688]
[1746371400681,10.13073768,1832.0,1831.9,5.3449]
[1746371402973,13.33853768,1832.0,1831.9,5.3449]
[1746371404289,13.33853768,1832.0,1831.9,3.688]
[1746371408085,1.0917,1831.9,1831.8,5.2776]
[1746371408286,10.09789768,1831.9,1831.8,5.2776]
[1746371409186,10.09789768,1831.9,1831.8,8.9656]
[1746371410388,10.09789768,1831.9,1831.8,5.2776]
[1746371411387,10.09789768,1831.9,1831.8,8.9656]
[1746371412185,10.09789768,1831.9,1831.8,5.2776]
[1746371413289,1.09188,1831.6,1831.5,6.8188]
[1746371413588,8.51407768,1831.6,1831.5,3.611]
[1746371413987,8.51407768,1831.6,1831.5,6.34404]
[1746371414189,8.51407768,1831.6,1831.5,10.03204]
[1746371415090,7.42219768,1831.6,1831.5,3.688]
[1746371415291,11.72187768,1831.6,1831.5,3.688]
[1746371416086,1.092,1831.4,1831.3,2.4793]
[1746371416292,8.51419768,1831.4,1831.3,2.4793]
[1746371417491,8.51419768,1831.4,1831.3,1.6095]
[1746371417689,1.09206,1831.3,1831.2,4.4302]
[1746371417992,2.81386,1831.3,1831.2,6.0397]
[1746371418194,6.50186,1831.3,1831.2,6.0397]
[1746371419090,2.81386,1831.3,1831.2,6.0397]
[1746371421487,10.23605768,1831.3,1831.2,3.611]
[1746371421687,9.14399768,1831.3,1831.1,0.7972]
[1746371421894,9.05239768,1831.2,1830.8,7.6198]
[1746371422188,1.6302,1831.1,1830.9,1.6146]
[1746371422394,1.09224,1831.0,1830.9,1.6146]
[1746371422591,8.51443768,1831.0,1830.9,1.6146]
[1746371424092,12.20243768,1831.0,1830.9,1.6146]
[1746371425094,8.51443768,1831.0,1830.9,1.6146]
[1746371427801,11.72223768,1831.0,1830.9,1.6146]
[1746371428994,13.41213768,1831.0,1830.9,1.6146]
[1746371429194,17.10013768,1831.0,1830.9,1.6146]
[1746371430197,13.41213768,1831.0,1830.9,1.6146]
[1746371431099,17.10013768,1831.0,1830.9,1.6146]
[1746371433100,13.41213768,1831.0,1830.9,1.6146]
[1746371434201,1.0923,1830.9,1830.8,1.6632]
[1746371434403,10.14089768,1830.9,1830.8,1.6632]
[1746371435101,13.82889768,1830.9,1830.8,1.6632]
[1746371435495,13.82889768,1830.9,1830.8,3.3129]
[1746371439101,10.14089768,1830.9,1830.8,3.3129]
[1746371441202,13.82889768,1830.9,1830.8,3.3129]
[1746371442303,10.14089768,1830.9,1830.8,3.3129]
[1746371443105,8.51449768,1830.9,1830.8,3.3129]
[1746371446109,1.09226,1831.0,1830.9,1.0923]
[1746371446306,1.09226,1831.0,1830.9,1.6393]
[1746371446707,1.09226,1831.0,1830.9,2.7316]
[1746371446900,1.09226,1831.0,1830.9,1.6393]
[1746371447605,1.09226,1831.0,1830.9,2.7316]
[1746371447908,1.09226,1831.0,1830.9,1.6393]
[1746371448406,1.09226,1831.0,1830.9,2.7316]
[1746371448606,1.09226,1831.0,1830.9,1.6393]
[1746371455116,4.78026,1831.0,1830.9,1.6393]
[1746371456213,1.09226,1831.0,1830.9,1.6393]
[1746371456621,1.09226,1831.0,1830.9,2.7316]
[1746371457103,1.09226,1831.0,1830.9,1.6393]
[1746371464320,4.902,1831.1,1830.9,1.6393]
[1746371464527,1.09218,1831.2,1831.0,1.09224]
[1746371464824,1.09218,1831.2,1831.1,2.69838]
[1746371465224,8.51437768,1831.2,1831.1,2.69838]
[1746371465417,8.51437768,1831.2,1831.1,1.6062]
[1746371466126,12.20237768,1831.2,1831.1,1.6062]
[1746371466328,11.11019768,1831.2,1831.1,2.69838]
[1746371466926,3.688,1831.2,1831.1,6.24038]
[1746371467127,7.93693584,1831.4,1831.3,1.09206]
[1746371467519,15.35913352,1831.4,1831.3,1.09206]
[1746371467720,15.35913352,1831.4,1831.3,2.74186]
[1746371468320,3.63708584,1831.4,1831.3,2.74186]
[1746371471429,1.092,1831.4,1831.3,2.74186]
[1746371471628,2.74489,1831.5,1831.3,2.74186]
[1746371471822,1.09206,1831.3,1831.2,0.8024]
[1746371472024,8.51425768,1831.3,1831.2,0.8024]
[1746371472223,10.22385768,1831.3,1831.2,1.89452]
[1746371472423,10.22385768,1831.3,1831.2,3.50582]
[1746371473129,12.81979768,1831.3,1831.2,3.50582]
[1746371473424,3.688,1831.3,1831.2,3.50582]
[1746371473932,11.11019768,1831.3,1831.2,2.4137]
[1746371474129,11.11019768,1831.3,1831.1,4.3339]
[1746371474428,10.18681768,1831.2,1831.1,7.11528]
[1746371475228,13.87481768,1831.2,1831.1,7.11528]
[1746371477030,13.87481768,1831.2,1831.1,6.0231]
[1746371477828,13.87481768,1831.2,1831.1,7.11528]
[1746371478027,1.09218,1831.1,1831.0,4.04]
[1746371478232,10.24857768,1831.1,1831.0,3.541]
[1746371479133,13.93657768,1831.1,1831.0,3.541]
[1746371480133,1.09224,1831.0,1830.9,1.7383]
[1746371480427,10.10203768,1831.0,1830.9,1.7383]
[1746371480628,10.10203768,1831.0,1830.9,2.8306]
[1746371481830,10.10203768,1831.0,1830.9,1.7383]
[1746371482831,10.10203768,1831.0,1830.9,2.8306]
[1746371483024,10.10203768,1831.0,1830.9,1.7383]
[1746371483428,10.10203768,1831.0,1830.9,2.8306]
[1746371483629,10.10203768,1831.0,1830.9,1.7383]
[1746371485735,10.10203768,1831.0,1830.9,2.8306]
[1746371485922,8.51443768,1831.0,1830.9,2.8306]
[1746371486623,8.51443768,1831.0,1830.9,1.7383]
[1746371487331,1.0923,1830.9,1830.8,0.8334]
[1746371487531,8.51449768,1830.9,1830.8,2.4015]
[1746371488230,10.23569768,1830.9,1830.8,2.4015]
[1746371488634,9.14339768,1830.9,1830.8,3.49386]
[1746371489840,10.23569768,1830.9,1830.8,3.49386]
[1746371490137,13.92369768,1830.9,1830.8,3.49386]
[1746371491235,10.23569768,1830.9,1830.8,3.49386]
[1746371492339,9.14339768,1830.9,1830.8,3.49386]
[1746371492737,10.23569768,1830.9,1830.8,3.49386]
[1746371492935,10.23569768,1830.9,1830.8,2.4015]
[1746371493137,10.23569768,1830.9,1830.8,1.5681]
[1746371493338,10.23569768,1830.9,1830.8,2.66046]
[1746371494138,10.23569768,1830.9,1830.8,1.5681]
[1746371494339,1.09236,1830.8,1830.7,2.5609]
[1746371494541,10.15815768,1830.8,1830.7,2.5609]
[1746371494739,10.15815768,1830.8,1830.7,3.65332]
[1746371495139,13.84615768,1830.8,1830.7,3.65332]
[1746371495342,12.75379768,1830.8,1830.7,3.65332]
[1746371495643,3.688,1830.8,1830.7,3.65332]
[1746371496232,2.73591,1830.9,1830.8,1.09236]
[1746371496429,2.73591,1830.9,1830.8,2.82816]
[1746371496643,10.15810768,1830.9,1830.8,2.82816]
[1746371496940,1.09236,1830.8,1830.7,1.92759]
[1746371497129,10.15815768,1830.8,1830.7,1.92759]
[1746371497335,10.15815768,1830.8,1830.7,3.66339]
[1746371497541,10.15815768,1830.8,1830.7,2.571]
[1746371497742,10.15815768,1830.8,1830.7,3.66342]
[1746371499041,10.15815768,1830.8,1830.7,2.571]
[1746371500142,13.84615768,1830.8,1830.7,2.571]
[1746371503149,10.15815768,1830.8,1830.7,2.571]
[1746371504150,13.84615768,1830.8,1830.7,2.571]
[1746371506350,1.09242,1830.7,1830.6,7.5361]
[1746371506555,8.51461768,1830.7,1830.6,7.5361]
[1746371506851,1.09242,1830.7,1830.6,7.5361]
[1746371507953,1.09242,1830.7,1830.6,8.62858]
[1746371508246,1.09242,1830.7,1830.6,7.5361]
[1746371508453,1.09242,1830.7,1830.6,8.62858]
[1746371512556,1.09242,1830.7,1830.6,5.42078]
[1746371513960,1.09242,1830.7,1830.6,3.534]
[1746371514159,6.38642,1830.7,1830.6,3.534]
[1746371514659,8.04932,1830.7,1830.6,3.534]
[1746371516256,4.36132,1830.7,1830.6,3.534]
[1746371517055,8.04932,1830.7,1830.6,3.534]
[1746371517753,8.04932,1830.7,1830.6,5.1722]
[1746371519159,4.36132,1830.7,1830.6,5.1722]
[1746371522454,10.99781768,1830.7,1830.6,5.1722]
[1746371522853,10.17751768,1830.7,1830.6,5.1722]
[1746371526764,10.17751768,1830.7,1830.6,1.6382]
[1746371526956,1.09254,1830.5,1830.4,10.043]
[1746371527260,8.51473768,1830.5,1830.4,6.8352]
[1746371527456,1.09254,1830.5,1830.4,6.8352]
[1746371529165,1.09252,1830.6,1830.4,6.8352]
[1746371529465,1.09252,1830.6,1830.5,1.6683]
[1746371529663,8.51471768,1830.6,1830.5,1.6683]
[1746371532167,12.20271768,1830.6,1830.5,1.6683]
[1746371532754,12.20271768,1830.6,1830.4,8.3922]
[1746371532755,1.09254,1830.5,1830.4,3.512]
[1746371532962,11.91133768,1830.5,1830.4,3.512]
[1746371533164,15.59933768,1830.5,1830.4,3.512]
[1746371533460,1.0926,1830.4,1830.3,7.23979766]
[1746371533659,10.21769768,1830.4,1830.3,7.23979766]
[1746371534067,13.90569768,1830.4,1830.3,7.23979766]
[1746371535061,14.31602913,1830.4,1830.3,7.23979766]
[1746371535267,14.31602913,1830.4,1830.1,14.14979766]
[1746371535268,1.09272,1830.2,1830.1,14.14979766]
[1746371535568,8.51491768,1830.2,1830.1,14.14979766]
[1746371535965,8.51491768,1830.2,1830.1,15.24257766]
[1746371536161,1.09272,1830.2,1830.1,14.14979766]
[1746371536466,8.51491768,1830.2,1830.1,14.14979766]
[1746371536866,8.51491768,1830.2,1830.1,15.24257766]
[1746371538868,8.51491768,1830.2,1830.1,14.14979766]
[1746371539066,8.51491768,1830.2,1830.1,6.91]
[1746371540363,1.09272,1830.2,1830.1,6.91]
[1746371540571,8.51491768,1830.2,1830.1,6.91]
[1746371543162,12.20291768,1830.2,1830.1,6.91]
[1746371545069,8.51491768,1830.2,1830.1,6.91]
[1746371546169,12.20291768,1830.2,1830.1,6.91]
[1746371546567,12.20291768,1830.2,1830.1,8.00278]
[1746371546768,12.20291768,1830.2,1830.1,6.91]
[1746371546965,3.688,1830.2,1830.1,8.00278]
[1746371547165,1.09271,1830.3,1830.2,1.09272]
[1746371547366,1.09271,1830.3,1830.2,2.74222]
[1746371547668,6.84488584,1830.6,1830.4,1.09258]
[1746371547866,7.93736584,1830.6,1830.5,3.3105]
[1746371548164,15.35956352,1830.6,1830.5,3.3105]
[1746371548369,16.95666352,1830.6,1830.5,3.3105]
[1746371548672,16.95666352,1830.6,1830.5,2.4976]
[1746371548873,16.95666352,1830.6,1830.5,1.6495]
[1746371549076,1.09254,1830.5,1830.4,3.513]
[1746371549266,10.11183768,1830.5,1830.4,5.1625]
[1746371550176,13.79983768,1830.5,1830.4,1.6495]
[1746371550470,20.84804759,1830.5,1829.9,10.44759766]
[1746371550667,1.09284,1830.0,1829.9,14.13619766]
[1746371550869,1.09284,1830.0,1829.9,12.45549766]
[1746371551065,4.78084,1830.0,1829.9,12.45549766]
[1746371551676,4.78084,1830.0,1829.9,13.54839766]
[1746371551879,3.688,1830.0,1829.9,13.54839766]
[1746371552077,1.09282,1830.1,1829.9,13.54839766]
[1746371552280,8.51501768,1830.1,1830.0,1.09284]
[1746371553078,12.20301768,1830.1,1830.0,1.09284]
[1746371553773,3.688,1830.1,1830.0,4.30064]
[1746371554181,1.09267,1830.3,1830.0,4.30064]
[1746371554182,1.09266,1830.3,1830.1,1.09274]
[1746371554374,1.09266,1830.3,1830.2,0.8089]
[1746371554573,1.09266,1830.3,1830.2,1.662]
[1746371554773,8.51485768,1830.3,1830.2,1.662]
[1746371555284,7.42219768,1830.3,1830.2,2.75472]
[1746371555579,8.51485768,1830.3,1830.2,2.75472]
[1746371555781,7.42219768,1830.3,1830.2,2.75472]
[1746371555983,8.51485768,1830.3,1830.2,1.662]
[1746371556281,7.42219768,1830.3,1830.2,2.75472]
[1746371559785,6.31056584,1830.5,1830.4,1.0926]
[1746371559986,12.15186352,1830.5,1830.4,1.0926]
[1746371560480,3.63708584,1830.5,1830.3,1.09261]
[1746371560681,1.09263,1830.4,1830.2,5.18]
[1746371560883,4.72963584,1830.5,1830.4,1.0926]
[1746371561078,3.63708584,1830.5,1830.3,1.09264]
[1746371561277,4.72966584,1830.5,1830.4,1.0926]
[1746371561477,12.15186352,1830.5,1830.4,1.0926]
[1746371561676,8.51477768,1830.5,1830.4,1.0926]
[1746371562284,1.09262,1830.4,1830.3,1.09263]
[1746371562781,5.7301,1830.6,1830.3,1.09261]
[1746371563083,8.51477768,1830.5,1830.2,5.18]
[1746371563277,7.42219768,1830.5,1830.4,1.0926]
[1746371563677,8.51473768,1830.5,1830.4,1.0926]
[1746371564089,6.32143584,1830.7,1830.6,1.09248]
[1746371564277,7.42219768,1830.6,1830.5,7.9319]
[1746371564679,1.09248,1830.6,1830.5,7.9319]
[1746371566185,1.09248,1830.6,1830.5,6.8394]
[1746371566683,1.09248,1830.6,1830.5,7.93194]
[1746371567081,4.78048,1830.6,1830.5,7.93194]
[1746371568787,3.688,1830.6,1830.5,7.93194]
[1746371569188,2.68436,1830.7,1830.5,7.93194]
[1746371569390,8.51467768,1830.6,1830.5,7.93194]
[1746371570287,1.09248,1830.6,1830.5,7.93194]
[1746371570685,5.2799,1830.7,1830.5,7.93194]
[1746371570887,6.37238,1830.7,1830.6,1.7016]
[1746371571085,10.10657768,1830.7,1830.6,2.79408]
[1746371574697,10.10657768,1830.7,1830.6,1.7016]
[1746371575192,13.79457768,1830.7,1830.6,1.7016]
[1746371578295,10.10657768,1830.7,1830.6,1.7016]
[1746371581802,10.10657768,1830.7,1830.6,2.79408]
[1746371583109,13.79457768,1830.7,1830.6,2.79408]
[1746371584108,13.79457768,1830.7,1830.6,1.7016]
[1746371584302,10.10657768,1830.7,1830.6,1.7016]
[1746371585207,13.79457768,1830.7,1830.6,1.7016]
[1746371585508,3.688,1830.7,1830.6,2.79408]
[1746371585709,4.72938584,1830.9,1830.8,1.09236]
[1746371585908,6.34938584,1830.9,1830.8,3.512]
[1746371586096,13.77158352,1830.9,1830.8,3.512]
[1746371586903,13.77158352,1830.9,1830.8,5.2461]
[1746371587099,13.77158352,1830.9,1830.8,6.0624]
[1746371587807,13.77158352,1830.9,1830.8,7.15476]
[1746371588605,10.13449768,1830.9,1830.8,7.15476]
[1746371591408,10.13449768,1830.9,1830.8,6.0624]
[1746371593817,10.13449768,1830.9,1830.8,7.15476]
[1746371594312,7.42219768,1830.9,1830.8,7.15476]
[1746371599113,8.51449768,1830.9,1830.8,7.15476]
[1746371599518,7.42219768,1830.9,1830.8,7.15476]
[1746371600118,7.42219768,1830.9,1830.8,10.84276]
[1746371601120,8.51449768,1830.9,1830.8,10.84276]
[1746371601414,7.42219768,1830.9,1830.8,10.84276]
[1746371608025,10.71522584,1831.2,1830.8,15.68909]
[1746371608216,7.42219768,1831.1,1831.0,4.3]
[1746371608417,7.42219768,1831.1,1831.0,6.0176]
[1746371608616,7.42219768,1831.1,1831.0,2.8098]
[1746371609326,7.42219768,1831.1,1831.0,6.4978]
[1746371609627,8.51437768,1831.1,1831.0,6.4978]
[1746371610224,7.42219768,1831.1,1831.0,6.4978]
[1746371619032,7.42219768,1831.1,1831.0,7.3578]
[1746371625537,3.2078,1831.3,1831.2,1.09212]
[1746371625926,10.62999768,1831.3,1831.2,2.74132]
[1746371626231,10.62999768,1831.3,1831.2,7.24852]
[1746371626639,3.1951,1831.4,1831.3,1.09206]
[1746371626834,7.42219768,1831.4,1831.3,3.53166]
[1746371627227,9.62308584,1831.5,1831.4,1.092]
[1746371627431,9.62308584,1831.5,1831.4,2.7412]
[1746371627627,17.04528352,1831.5,1831.4,6.2512]
[1746371628134,17.04528352,1831.5,1831.4,9.9392]
[1746371630429,13.40819768,1831.5,1831.4,9.9392]
[1746371631228,7.42219768,1831.5,1831.4,9.9392]
[1746371633238,1.5715,1831.6,1831.5,1.09194]
[1746371633438,1.5715,1831.6,1831.5,3.58864]
[1746371633642,8.99369768,1831.6,1831.5,3.58864]
[1746371634144,8.99369768,1831.6,1831.5,7.27664]
[1746371634342,7.42219768,1831.6,1831.5,7.27664]
[1746371636841,4.9145,1831.7,1831.6,1.09188]
[1746371637045,10.62999768,1831.7,1831.6,3.58638]
[1746371637237,3.2078,1831.7,1831.6,3.58638]
[1746371637437,1.7067,1831.8,1831.7,1.09182]
[1746371637633,1.7067,1831.8,1831.7,2.79402]
[1746371637840,9.12889768,1831.8,1831.7,2.79402]
[1746371638235,9.12889768,1831.8,1831.7,6.48202]
[1746371638842,9.12889768,1831.8,1831.7,9.99102]
[1746371641044,7.42219768,1831.8,1831.7,9.99102]
[1746371641843,1.6668,1832.0,1831.9,1.0917]
[1746371642142,1.6668,1832.0,1831.9,4.7797]
[1746371642344,10.18063768,1832.0,1831.9,4.7797]
[1746371642846,10.18063768,1832.0,1831.9,3.688]
[1746371643037,10.18063768,1832.0,1831.9,4.7797]
[1746371646346,9.08899768,1832.0,1831.9,4.7797]
[1746371647045,9.08899768,1832.0,1831.9,6.4572]
[1746371648848,10.18063768,1832.0,1831.9,6.4572]
[1746371649344,10.18063768,1832.0,1831.9,2.7692]
[1746371650148,10.18063768,1832.0,1831.9,6.4572]
[1746371652447,9.08899768,1832.0,1831.9,6.4572]
[1746371653837,9.08899768,1832.0,1831.9,7.3051]
[1746371654042,1.09157,1832.2,1832.1,1.09158]
[1746371654248,2.67757,1832.2,1832.1,1.09158]
[1746371654450,10.09976768,1832.2,1832.1,1.09158]
[1746371654653,9.00819768,1832.2,1832.1,2.67838]
[1746371654844,10.09971768,1832.2,1832.1,2.67838]
[1746371656250,9.00819768,1832.2,1832.1,2.67838]
[1746371656951,10.09971768,1832.2,1832.1,3.49028]
[1746371657144,10.09971768,1832.2,1832.1,2.3987]
[1746371658356,10.09971768,1832.2,1832.1,3.49028]
[1746371659447,7.42219768,1832.2,1832.1,3.49028]
[1746371659650,9.62308584,1832.6,1832.5,1.09135]